fUST/lending_fUST_20250215
["ID","MTS","AMOUNT","RATE_DAILY","PERIOD"]
[353167606,1739620233326,-500.0,8.918e-05,2]
[353167607,1739620233336,-2125.17,8.918e-05,2]
[353167608,1739620233345,-500.0,8.918e-05,2]
[353167609,1739620233356,-500.0,8.918e-05,2]
[353167610,1739620233365,-1774.23,8.918e-05,2]
[353167611,1739620233374,-3063.13,8.918e-05,2]
[353167612,1739620233384,-500.0,8.918e-05,2]
[353167613,1739620233393,-500.0,8.918e-05,2]
[353167614,1739620233403,-500.0,8.918e-05,2]
[353167615,1739620233413,-1074.04,8.918e-05,2]
[353167616,1739620233423,-1744.41,8.918e-05,2]
[353167617,1739620233432,-2385.74,8.918e-05,2]
[353167618,1739620233442,-500.0,8.918e-05,2]
[353167619,1739620233451,-151.0,8.918e-05,2]
[353167620,1739620233461,-582.45,8.918e-05,2]
[353167621,1739620233471,-500.0,8.918e-05,2]
[353167622,1739620233483,-500.0,8.918e-05,2]
[353167623,1739620233493,-500.0,8.918e-05,2]
[353167624,1739620233503,-634.99,8.918e-05,2]
[353167625,1739620233512,-767.44,8.918e-05,2]
[353167626,1739620233522,-500.0,8.918e-05,2]
[353167627,1739620233532,-513.25,8.918e-05,2]
[353167628,1739620233541,-455.74908586,8.918e-05,2]
[353167629,1739620233551,-567.68,8.918e-05,2]
[353167630,1739620233561,-879.04,8.918e-05,2]
[353167631,1739620233571,-500.0,8.918e-05,2]
[353167632,1739620233580,-844.45,8.918e-05,2]
[353167633,1739620233591,-7377.81,8.918e-05,2]
[353167634,1739620233602,-3978.07,8.918e-05,2]
[353167635,1739620233611,-1817.03,8.918e-05,2]
[353167636,1739620233621,-2524.2,8.918e-05,2]
[353167637,1739620233631,-804.53,8.918e-05,2]
[353167638,1739620233641,-1095.81,8.918e-05,2]
[353167639,1739620233650,-1790.8,8.918e-05,2]
[353167640,1739620233661,-500.0,8.918e-05,2]
[353167641,1739620233670,-3753.8,8.918e-05,2]
[353167642,1739620233679,-500.0,8.918e-05,2]
[353167643,1739620233689,-1414.3,8.918e-05,2]
[353167644,1739620233699,-500.0,8.918e-05,2]
[353167645,1739620233709,-500.0,8.918e-05,2]
[353167646,1739620233718,-500.0,8.918e-05,2]
[353167647,1739620233728,-905.61,8.918e-05,2]
[353167648,1739620233739,-500.0,8.918e-05,2]
[353167649,1739620233749,-500.0,8.918e-05,2]
[353167650,1739620233758,-520.76,8.918e-05,2]
[353167651,1739620233768,-803.6,8.918e-05,2]
[353167652,1739620233778,-4483.5,8.918e-05,2]
[353167653,1739620233788,-500.0,8.918e-05,2]
[353167654,1739620233797,-500.0,8.918e-05,2]
[353167655,1739620233807,-500.0,8.918e-05,2]
[353167656,1739620233817,-1912.58,8.918e-05,2]
[353167657,1739620233827,-500.0,8.918e-05,2]
[353167658,1739620233837,-1863.29,8.918e-05,2]
[353167659,1739620233848,-1387.46,8.918e-05,2]
[353167660,1739620233857,-1196.63,8.918e-05,2]
[353167661,1739620233867,-2730.45,8.918e-05,2]
[353167662,1739620233876,-500.0,8.918e-05,2]
[353167663,1739620233886,-5150.21,8.918e-05,2]
[353167664,1739620233895,-500.0,8.918e-05,2]
[353167665,1739620233905,-580.52,8.918e-05,2]
[353167666,1739620233916,-1496.31,8.918e-05,2]
[353167667,1739620233925,-500.0,8.918e-05,2]
[353167668,1739620233935,-19915.3,8.918e-05,2]
[353167669,1739620233944,-500.0,8.918e-05,2]
[353167670,1739620233954,-500.0,8.918e-05,2]
[353167671,1739620233964,-53140.49,8.918e-05,2]
[353167672,1739620233974,-500.0,8.918e-05,2]
[353167673,1739620233984,-500.0,8.918e-05,2]
[353167674,1739620233994,-500.0,8.918e-05,2]
[353167675,1739620234003,-1428.91197047,8.918e-05,2]
[353167679,1739620238568,-1422.31802953,8.918e-05,2]
[353167680,1739620238578,-2611.78,8.918e-05,2]
[353167681,1739620238587,-3959.63,8.918e-05,2]
[353167682,1739620238598,-500.0,8.919e-05,2]
[353167683,1739620238607,-857.14,8.919e-05,2]
[353167684,1739620238618,-1893.01,8.919e-05,2]
[353167685,1739620238628,-981.46,8.919e-05,2]
[353167686,1739620238638,-487.93052663,8.919e-05,2]
[353167719,1739620243882,-1814.14,8.918e-05,2]
[353167720,1739620243891,-2036.62,8.918e-05,2]
[353167721,1739620243901,-500.0,8.918e-05,2]
[353167722,1739620243910,-464.23947337,8.919e-05,2]
[353167723,1739620243919,-625.51,8.919e-05,2]
[353167724,1739620243929,-7678.49053501,8.919e-05,2]
[353168047,1739620274904,500.0,0.00017808,30]
[353168049,1739620279710,151.0,8.845e-05,2]
[353168059,1739620994158,165.809037,0.00017472,30]
[353168061,1739621215350,500.0,0.00017808,30]
[353168083,1739621431835,-1882.58109462,8.9e-05,2]
[353168085,1739621431845,-300.0,8.914e-05,2]
[353168087,1739621431855,-2935.5,8.915e-05,2]
[353168089,1739621431864,-500.0,8.915e-05,2]
[353168091,1739621431874,-500.0,8.915e-05,2]
[353168093,1739621431884,-772.98972356,8.915e-05,2]
[353169585,1739621640623,4786.22971069,8.845e-05,2]
[353169588,1739622072821,500.0,0.00017808,30]
[353169658,1739622631952,-624.94268916,8.9e-05,2]
[353169659,1739622631961,-300.0,8.911e-05,2]
[353169660,1739622631972,-279.20731089,8.912e-05,2]
[353169661,1739622632061,-220.79268911,8.912e-05,2]
[353169662,1739622632070,-1882.18478773,8.912e-05,2]
[353169715,1739622637856,-931.00521227,8.912e-05,2]
[353169717,1739622637867,-500.0,8.912e-05,2]
[353169719,1739622637878,-500.0,8.912e-05,2]
[353169721,1739622637887,-500.0,8.912e-05,2]
[353169723,1739622637896,-810.21,8.912e-05,2]
[353169725,1739622637905,-7070.4,8.912e-05,2]
[353169727,1739622637915,-2419.02,8.912e-05,2]
[353169728,1739622637924,-1716.18,8.912e-05,2]
[353169729,1739622637933,-217.16504703,8.912e-05,2]
[353169730,1739622637944,-2271.06,8.912e-05,2]
[353169732,1739622637953,-3597.4,8.912e-05,2]
[353169733,1739622637963,-1355.37,8.912e-05,2]
[353169734,1739622637973,-500.0,8.912e-05,2]
[353169735,1739622637982,-1495.47,8.912e-05,2]
[353169736,1739622637991,-867.87,8.912e-05,2]
[353169737,1739622638001,-500.0,8.912e-05,2]
[353169738,1739622638011,-500.0,8.912e-05,2]
[353169739,1739622638021,-312.87142448,8.912e-05,2]
[353169740,1739622638031,-500.0,8.912e-05,2]
[353169741,1739622638040,-599.48,8.912e-05,2]
[353169742,1739622638049,-1832.88,8.912e-05,2]
[353169743,1739622638058,-500.0,8.912e-05,2]
[353169744,1739622638068,-1785.65,8.912e-05,2]
[353169745,1739622638077,-1329.65,8.912e-05,2]
[353169746,1739622638087,-1962.51,8.912e-05,2]
[353169747,1739622638096,-4935.62,8.912e-05,2]
[353169748,1739622638107,-500.0,8.912e-05,2]
[353169749,1739622638117,-1099.23,8.912e-05,2]
[353169750,1739622638127,-500.0,8.912e-05,2]
[353169751,1739622638137,-500.0,8.912e-05,2]
[353169752,1739622638147,-500.0,8.912e-05,2]
[353169753,1739622638156,-500.0,8.912e-05,2]
[353169754,1739622638167,-500.0,8.912e-05,2]
[353169755,1739622638176,-500.0,8.912e-05,2]
[353169756,1739622638185,-500.0,8.912e-05,2]
[353169757,1739622638195,-500.0,8.912e-05,2]
[353169758,1739622638204,-193.87290273,8.912e-05,2]
[353169759,1739622638213,-500.0,8.912e-05,2]
[353169760,1739622638223,-511.98919544,8.912e-05,2]
[353169761,1739622638232,-500.0,8.912e-05,2]
[353169762,1739622638242,-500.0,8.912e-05,2]
[353169763,1739622638251,-500.0,8.912e-05,2]
[353169764,1739622638260,-500.0,8.912e-05,2]
[353169765,1739622638269,-300.0,8.912e-05,2]
[353169766,1739622638278,-500.0,8.912e-05,2]
[353169767,1739622638287,-500.0,8.912e-05,2]
[353169768,1739622638297,-500.0,8.912e-05,2]
[353169769,1739622638306,-500.0,8.912e-05,2]
[353169770,1739622638315,-500.0,8.912e-05,2]
[353169771,1739622638324,-500.0,8.912e-05,2]
[353169772,1739622638333,-500.0,8.912e-05,2]
[353169773,1739622638345,-500.0,8.912e-05,2]
[353169774,1739622638354,-500.0,8.912e-05,2]
[353169775,1739622638364,-500.0,8.912e-05,2]
[353169776,1739622638373,-500.0,8.912e-05,2]
[353169777,1739622638383,-500.0,8.912e-05,2]
[353169778,1739622638392,-500.0,8.912e-05,2]
[353169779,1739622638402,-500.0,8.912e-05,2]
[353169780,1739622638411,-500.0,8.912e-05,2]
[353169781,1739622638421,-500.0,8.912e-05,2]
[353169782,1739622638431,-500.0,8.912e-05,2]
[353169783,1739622638440,-500.0,8.912e-05,2]
[353169784,1739622638450,-500.0,8.912e-05,2]
[353169785,1739622638459,-500.0,8.912e-05,2]
[353169786,1739622638469,-500.0,8.912e-05,2]
[353169787,1739622638479,-500.0,8.912e-05,2]
[353169788,1739622638489,-500.0,8.912e-05,2]
[353169789,1739622638499,-500.0,8.912e-05,2]
[353169790,1739622638508,-500.0,8.912e-05,2]
[353169791,1739622638518,-500.0,8.912e-05,2]
[353169792,1739622638528,-500.0,8.912e-05,2]
[353169793,1739622638537,-500.0,8.912e-05,2]
[353169794,1739622638547,-500.0,8.912e-05,2]
[353169795,1739622638556,-500.0,8.912e-05,2]
[353169796,1739622638566,-500.0,8.912e-05,2]
[353169797,1739622638575,-500.0,8.912e-05,2]
[353169798,1739622638585,-500.0,8.912e-05,2]
[353169799,1739622638595,-500.0,8.912e-05,2]
[353169800,1739622638604,-500.0,8.912e-05,2]
[353169801,1739622638614,-500.0,8.912e-05,2]
[353169802,1739622638623,-500.0,8.912e-05,2]
[353169803,1739622638632,-500.0,8.912e-05,2]
[353169804,1739622638641,-182.90118389,8.912e-05,2]
[353169805,1739622638651,-500.0,8.912e-05,2]
[353169806,1739622638660,-500.0,8.912e-05,2]
[353169807,1739622638670,-500.0,8.912e-05,2]
[353169808,1739622638680,-500.0,8.912e-05,2]
[353169809,1739622638689,-500.0,8.912e-05,2]
[353169810,1739622638699,-500.0,8.912e-05,2]
[353169811,1739622638709,-500.0,8.912e-05,2]
[353169812,1739622638719,-500.0,8.912e-05,2]
[353169813,1739622638728,-577.083,8.912e-05,2]
[353169814,1739622638738,-500.0,8.912e-05,2]
[353169815,1739622638748,-577.75377915,8.912e-05,2]
[353169816,1739622638758,-537.10856408,8.912e-05,2]
[353169817,1739622638768,-577.75377915,8.912e-05,2]
[353169818,1739622638777,-537.10856408,8.912e-05,2]
[353169819,1739622638786,-500.0,8.912e-05,2]
[353169820,1739622638795,-577.75377915,8.912e-05,2]
[353169821,1739622638804,-119.31791251,8.912e-05,2]
[353169822,1739622638822,-417.79065157,8.912e-05,2]
[353169823,1739622638831,-193.76534843,8.912e-05,2]
[353169844,1739622640029,-383.98843072,8.912e-05,2]
[353169845,1739622640040,-94.12156928,8.912e-05,2]
[353169846,1739622640052,-442.9869948,8.912e-05,2]
[353169847,1739622640064,-399.5624712,8.912e-05,2]
[353169876,1739622643076,-500.0,8.912e-05,2]
[353169879,1739622643086,-787.64815953,8.912e-05,2]
[353170157,1739622645923,-1908.32184047,8.912e-05,2]
[353170159,1739622645933,-178.19130795,8.912e-05,2]
[353170161,1739622645942,-537.10856408,8.912e-05,2]
[353170163,1739622645951,-577.75377915,8.912e-05,2]
[353170165,1739622645961,-537.10856408,8.912e-05,2]
[353170167,1739622645971,-577.75377915,8.912e-05,2]
[353170169,1739622645980,-469.99187581,8.912e-05,2]
[353170618,1739622938783,341.84833576,8.81e-05,2]
[353170619,1739622993113,500.0,0.00017808,30]
[353170620,1739623032122,292.7122065,7.98e-05,2]
[353170621,1739623147777,4729.7177273,7.98e-05,2]
[353170624,1739623337146,3275.1977718,7.915e-05,2]
[353170628,1739623598341,2648.0,0.00018,30]
[353170629,1739623670148,-300.0,8.908e-05,2]
[353170630,1739623670172,-2176.43,8.909e-05,2]
[353170631,1739623670195,-1433.15,8.909e-05,2]
[353170632,1739623670218,-574.5,8.909e-05,2]
[353170633,1739623670243,-500.0,8.909e-05,2]
[353170634,1739623670266,-1053.43,8.909e-05,2]
[353170635,1739623670287,-500.0,8.909e-05,2]
[353170636,1739623670308,-2583.64,8.909e-05,2]
[353170637,1739623670330,-500.0,8.909e-05,2]
[353170638,1739623670351,-501.14047423,8.909e-05,2]
[353170639,1739623670372,-500.0,8.909e-05,2]
[353170640,1739623670394,-500.0,8.909e-05,2]
[353170641,1739623670415,-500.0,8.909e-05,2]
[353170642,1739623670437,-500.0,8.909e-05,2]
[353170643,1739623670459,-577.09698919,8.909e-05,2]
[353170644,1739623670482,-500.0,8.909e-05,2]
[353170645,1739623670504,-500.0,8.909e-05,2]
[353170646,1739623670528,-500.0,8.909e-05,2]
[353170647,1739623670550,-230.787,8.909e-05,2]
[353170648,1739623670574,-500.0,8.909e-05,2]
[353170649,1739623670598,-500.0,8.909e-05,2]
[353170650,1739623670763,-568.96382981,8.909e-05,2]
[353170651,1739623670788,-500.0,8.909e-05,2]
[353170652,1739623670813,-500.0,8.909e-05,2]
[353170653,1739623670837,-500.0,8.909e-05,2]
[353170654,1739623670860,-500.0,8.909e-05,2]
[353170655,1739623670884,-500.0,8.909e-05,2]
[353170656,1739623670908,-500.0,8.909e-05,2]
[353170657,1739623670933,-500.0,8.909e-05,2]
[353170658,1739623670957,-500.0,8.909e-05,2]
[353170659,1739623670980,-500.0,8.909e-05,2]
[353170660,1739623671005,-500.0,8.909e-05,2]
[353170661,1739623671029,-500.0,8.909e-05,2]
[353170662,1739623671054,-500.0,8.909e-05,2]
[353170663,1739623671076,-500.0,8.909e-05,2]
[353170664,1739623671099,-500.0,8.909e-05,2]
[353170665,1739623671122,-500.0,8.909e-05,2]
[353170666,1739623671146,-500.0,8.909e-05,2]
[353170667,1739623671169,-500.0,8.909e-05,2]
[353170668,1739623671193,-500.0,8.909e-05,2]
[353170669,1739623671217,-500.0,8.909e-05,2]
[353170670,1739623671241,-500.0,8.909e-05,2]
[353170671,1739623671264,-500.0,8.909e-05,2]
[353170672,1739623671286,-500.0,8.909e-05,2]
[353170673,1739623671310,-500.0,8.909e-05,2]
[353170674,1739623671334,-500.0,8.909e-05,2]
[353170675,1739623671356,-500.0,8.909e-05,2]
[353170676,1739623671379,-500.0,8.909e-05,2]
[353170677,1739623671402,-500.0,8.909e-05,2]
[353170678,1739623671427,-500.0,8.909e-05,2]
[353170679,1739623671450,-500.0,8.909e-05,2]
[353170680,1739623671473,-500.0,8.909e-05,2]
[353170681,1739623671497,-500.0,8.909e-05,2]
[353170682,1739623671519,-534.84376796,8.909e-05,2]
[353170683,1739623671542,-500.0,8.909e-05,2]
[353170684,1739623671566,-500.0,8.909e-05,2]
[353170685,1739623671589,-500.0,8.909e-05,2]
[353170686,1739623671612,-500.0,8.909e-05,2]
[353170687,1739623671635,-500.0,8.909e-05,2]
[353170688,1739623671658,-500.0,8.909e-05,2]
[353170689,1739623671684,-500.0,8.909e-05,2]
[353170690,1739623671707,-500.0,8.909e-05,2]
[353170691,1739623671732,-500.0,8.909e-05,2]
[353170692,1739623671759,-500.0,8.909e-05,2]
[353170693,1739623671783,-500.0,8.909e-05,2]
[353170694,1739623671808,-500.0,8.909e-05,2]
[353170695,1739623671834,-500.0,8.909e-05,2]
[353170696,1739623671857,-500.0,8.909e-05,2]
[353170697,1739623671880,-450.0,8.909e-05,2]
[353170698,1739623671904,-500.0,8.909e-05,2]
[353170699,1739623671928,-500.0,8.909e-05,2]
[353170700,1739623671951,-500.0,8.909e-05,2]
[353170701,1739623671975,-500.0,8.909e-05,2]
[353170702,1739623671998,-500.0,8.909e-05,2]
[353170703,1739623672021,-500.0,8.909e-05,2]
[353170704,1739623672043,-500.0,8.909e-05,2]
[353170705,1739623672067,-500.0,8.909e-05,2]
[353170706,1739623672090,-500.0,8.909e-05,2]
[353170707,1739623672114,-500.0,8.909e-05,2]
[353170708,1739623672136,-500.0,8.909e-05,2]
[353170709,1739623672161,-500.0,8.909e-05,2]
[353170710,1739623672184,-500.0,8.909e-05,2]
[353170711,1739623672207,-500.0,8.909e-05,2]
[353170712,1739623672230,-500.0,8.909e-05,2]
[353170713,1739623672252,-500.0,8.909e-05,2]
[353170714,1739623672275,-500.0,8.909e-05,2]
[353170715,1739623672299,-500.0,8.909e-05,2]
[353170716,1739623672321,-500.0,8.909e-05,2]
[353170717,1739623672344,-500.0,8.909e-05,2]
[353170718,1739623672367,-500.0,8.909e-05,2]
[353170719,1739623672390,-500.0,8.909e-05,2]
[353170720,1739623672413,-500.0,8.909e-05,2]
[353170721,1739623672435,-500.0,8.909e-05,2]
[353170722,1739623672460,-500.0,8.909e-05,2]
[353170723,1739623672482,-500.0,8.909e-05,2]
[353170724,1739623672505,-500.0,8.909e-05,2]
[353170725,1739623672533,-500.0,8.909e-05,2]
[353170726,1739623672556,-500.0,8.909e-05,2]
[353170727,1739623672579,-500.0,8.909e-05,2]
[353170728,1739623672602,-500.0,8.909e-05,2]
[353170729,1739623672624,-500.0,8.909e-05,2]
[353170730,1739623672648,-500.0,8.909e-05,2]
[353170731,1739623672672,-413.5939116,8.909e-05,2]
[353170732,1739623672696,-500.0,8.909e-05,2]
[353170733,1739623672822,-500.0,8.909e-05,2]
[353170734,1739623672847,-500.0,8.909e-05,2]
[353170735,1739623672870,-500.0,8.909e-05,2]
[353170736,1739623672894,-500.0,8.909e-05,2]
[353170737,1739623672919,-500.0,8.909e-05,2]
[353170738,1739623672943,-500.0,8.909e-05,2]
[353170739,1739623672966,-500.0,8.909e-05,2]
[353170740,1739623672988,-500.0,8.909e-05,2]
[353170741,1739623673011,-500.0,8.909e-05,2]
[353170742,1739623673034,-500.0,8.909e-05,2]
[353170743,1739623673056,-500.0,8.909e-05,2]
[353170744,1739623673077,-500.0,8.909e-05,2]
[353170745,1739623673100,-500.0,8.909e-05,2]
[353170746,1739623673123,-500.0,8.909e-05,2]
[353170747,1739623673145,-500.0,8.909e-05,2]
[353170748,1739623673168,-500.0,8.909e-05,2]
[353170749,1739623673192,-500.0,8.909e-05,2]
[353170750,1739623673216,-500.0,8.909e-05,2]
[353170751,1739623673239,-500.0,8.909e-05,2]
[353170752,1739623673263,-500.0,8.909e-05,2]
[353170753,1739623673287,-500.0,8.909e-05,2]
[353170754,1739623673311,-500.0,8.909e-05,2]
[353170755,1739623673335,-500.0,8.909e-05,2]
[353170756,1739623673358,-500.0,8.909e-05,2]
[353170757,1739623673381,-500.0,8.909e-05,2]
[353170758,1739623673404,-500.0,8.909e-05,2]
[353170759,1739623673427,-500.0,8.909e-05,2]
[353170760,1739623673449,-500.0,8.909e-05,2]
[353170761,1739623673472,-500.0,8.909e-05,2]
[353170762,1739623673495,-500.0,8.909e-05,2]
[353170763,1739623673519,-500.0,8.909e-05,2]
[353170764,1739623673542,-500.0,8.909e-05,2]
[353170765,1739623673565,-500.0,8.909e-05,2]
[353170766,1739623673589,-500.0,8.909e-05,2]
[353170767,1739623673612,-500.0,8.909e-05,2]
[353170768,1739623673636,-500.0,8.909e-05,2]
[353170769,1739623673662,-500.0,8.909e-05,2]
[353170770,1739623673687,-500.0,8.909e-05,2]
[353170771,1739623673711,-500.0,8.909e-05,2]
[353170772,1739623673735,-500.0,8.909e-05,2]
[353170773,1739623673766,-500.0,8.909e-05,2]
[353170774,1739623673803,-500.0,8.909e-05,2]
[353170775,1739623673836,-500.0,8.909e-05,2]
[353170776,1739623673871,-500.0,8.909e-05,2]
[353170777,1739623673905,-500.0,8.909e-05,2]
[353170778,1739623673940,-500.0,8.909e-05,2]
[353170779,1739623673973,-500.0,8.909e-05,2]
[353170780,1739623674006,-500.0,8.909e-05,2]
[353170781,1739623674038,-500.0,8.909e-05,2]
[353170782,1739623674070,-500.0,8.909e-05,2]
[353170783,1739623674104,-500.0,8.909e-05,2]
[353170784,1739623674135,-500.0,8.909e-05,2]
[353170785,1739623674162,-237.9445128,8.909e-05,2]
[353170786,1739623674196,-500.0,8.909e-05,2]
[353170787,1739623674225,-650.00000001,8.909e-05,2]
[353170788,1739623674257,-500.0,8.909e-05,2]
[353170789,1739623674285,-500.0,8.909e-05,2]
[353170790,1739623674315,-500.0,8.909e-05,2]
[353170791,1739623674345,-500.0,8.909e-05,2]
[353170792,1739623674373,-622.499,8.91e-05,2]
[353170793,1739623674400,-166.856,8.91e-05,2]
[353170794,1739623674428,-777.77,8.91e-05,2]
[353170795,1739623674458,-664.82,8.91e-05,2]
[353170796,1739623674485,-1294.61,8.91e-05,2]
[353170797,1739623674515,-686.63,8.91e-05,2]
[353170798,1739623674543,-1175.18,8.91e-05,2]
[353170799,1739623674570,-695.09,8.91e-05,2]
[353170800,1739623674599,-500.0,8.91e-05,2]
[353170801,1739623674629,-500.0,8.91e-05,2]
[353170802,1739623674657,-729.14,8.91e-05,2]
[353170803,1739623674686,-500.0,8.91e-05,2]
[353170804,1739623674715,-500.0,8.91e-05,2]
[353170805,1739623674745,-815.8845144,8.91e-05,2]
[353170816,1739623832252,-300.0,8.908e-05,2]
[353170817,1739623832264,-500.0,8.909e-05,2]
[353170818,1739623832276,-776.45,8.909e-05,2]
[353170819,1739623832288,-500.0,8.909e-05,2]
[353170820,1739623832300,-583.65,8.909e-05,2]
[353170821,1739623832406,-1734.58,8.909e-05,2]
[353170822,1739623832415,-6775.8,8.909e-05,2]
[353170823,1739623832424,-1096.44,8.909e-05,2]
[353170825,1739623832609,-1298.89,8.909e-05,2]
[353170826,1739623832632,-3447.5,8.909e-05,2]
[353170827,1739623832642,-500.0,8.909e-05,2]
[353170828,1739623832651,-639.96,8.909e-05,2]
[353170829,1739623832660,-500.0,8.909e-05,2]
[353170830,1739623832670,-500.0,8.909e-05,2]
[353170831,1739623832679,-2085.74,8.909e-05,2]
[353170832,1739623832688,-253.19610341,8.909e-05,2]
[353170833,1739623832698,-831.71,8.909e-05,2]
[353170834,1739623832707,-800.97053685,8.909e-05,2]
[353170835,1739623832719,-384.67002,8.909e-05,2]
[353170849,1739623837997,-553.5485933,8.909e-05,2]
[353170850,1739623838069,-17.32084985,8.909e-05,2]
[353170851,1739623838079,-1373.44,8.909e-05,2]
[353170852,1739623838088,-1711.25,8.909e-05,2]
[353170853,1739623838098,-550.56,8.909e-05,2]
[353170854,1739623838107,-500.0,8.909e-05,2]
[353170855,1739623838116,-2534.91,8.909e-05,2]
[353170856,1739623838126,-500.0,8.909e-05,2]
[353170857,1739623838135,-500.0,8.909e-05,2]
[353170858,1739623838145,-4729.97,8.909e-05,2]
[353170859,1739623838154,-1274.25,8.909e-05,2]
[353170861,1739623838164,-500.0,8.909e-05,2]
[353170862,1739623838173,-500.0,8.909e-05,2]
[353170863,1739623838182,-500.0,8.909e-05,2]
[353170864,1739623838191,-1009.54,8.909e-05,2]
[353170865,1739623838201,-500.0,8.909e-05,2]
[353170866,1739623838210,-3794.64,8.909e-05,2]
[353170867,1739623838219,-500.0,8.909e-05,2]
[353170869,1739623838228,-500.0,8.909e-05,2]
[353170870,1739623838237,-500.0,8.909e-05,2]
[353170872,1739623838247,-500.0,8.909e-05,2]
[353170874,1739623838257,-59.03911998,8.909e-05,2]
[353170881,1739623838311,-500.0,8.909e-05,2]
[353170883,1739623838321,-440.96088002,8.909e-05,2]
[353170884,1739623838332,-433.79445128,8.909e-05,2]
[353170885,1739623838341,-500.0,8.909e-05,2]
[353170886,1739623838350,-500.0,8.909e-05,2]
[353170887,1739623838359,-500.0,8.909e-05,2]
[353170888,1739623838369,-500.0,8.909e-05,2]
[353170889,1739623838379,-500.0,8.909e-05,2]
[353170890,1739623838388,-500.0,8.909e-05,2]
[353170891,1739623838397,-500.0,8.909e-05,2]
[353170892,1739623838406,-444.84376796,8.909e-05,2]
[353170893,1739623838415,-500.0,8.909e-05,2]
[353170894,1739623838424,-96.85729804,8.909e-05,2]
[353171112,1739623844875,-356.0,8.909e-05,2]
[353171374,1739623848563,1590.3015891,8.001e-05,2]
[353171375,1739623892681,500.0,0.00017808,30]
[353171380,1739624601490,2315.981002,0.00018,30]
[353171385,1739624794331,500.0,0.00017808,30]
[353171410,1739625032410,-300.0,8.905e-05,2]
[353171411,1739625032420,-1998.84,8.906e-05,2]
[353171413,1739625032430,-1316.21,8.906e-05,2]
[353171415,1739625032440,-527.62,8.906e-05,2]
[353171417,1739625032450,-500.0,8.906e-05,2]
[353171419,1739625032460,-500.0,8.906e-05,2]
[353171421,1739625032470,-185.72233314,8.906e-05,2]
[353171466,1739625038482,-314.27766686,8.906e-05,2]
[353171467,1739625038491,-429.90312062,8.906e-05,2]
[353171468,1739625038500,-409.78921252,8.906e-05,2]
[353171742,1739625044327,1005.84649465,0.00018,30]
[353171748,1739625056018,5000.0,8.845e-05,2]
[353171749,1739625064417,5000.0,8.845e-05,2]
[353171752,1739625095599,5000.0,8.845e-05,2]
[353171753,1739625192864,5000.0,8.845e-05,2]
[353171758,1739625583622,250.0,7.91e-05,2]
[353171764,1739625679647,500.0,0.00017808,30]
[353171765,1739625804048,24900.0,7.925e-05,2]
[353171812,1739626232664,-300.0,8.903e-05,2]
[353171814,1739626232673,-323.60902369,8.903e-05,2]
[353171816,1739626232683,-967.47,8.904e-05,2]
[353171818,1739626232692,-500.0,8.904e-05,2]
[353171820,1739626232702,-380.65924819,8.904e-05,2]
[353171822,1739626232715,-2095.33075181,8.904e-05,2]
[353171825,1739626232724,-500.0,8.904e-05,2]
[353171826,1739626232737,-475.85449524,8.904e-05,2]
[353171829,1739626232751,-24.14550476,8.904e-05,2]
[353171831,1739626232760,-500.0,8.904e-05,2]
[353171833,1739626232769,-744.09,8.904e-05,2]
[353171835,1739626232779,-2310.53,8.904e-05,2]
[353171837,1739626232789,-6493.48,8.904e-05,2]
[353171839,1739626232799,-1637.52,8.904e-05,2]
[353171841,1739626232808,-1271.54,8.904e-05,2]
[353171843,1739626232818,-3407.95,8.904e-05,2]
[353171845,1739626232827,-500.0,8.904e-05,2]
[353171847,1739626232836,-500.0,8.904e-05,2]
[353171849,1739626232845,-1915.55,8.904e-05,2]
[353171851,1739626232855,-500.0,8.904e-05,2]
[353171853,1739626232864,-500.0,8.904e-05,2]
[353171854,1739626232873,-817.89,8.904e-05,2]
[353171856,1739626232882,-1261.37,8.904e-05,2]
[353171857,1739626232891,-170.60194545,8.904e-05,2]